bitfinex-derivatives/quotes_ETHF0:USTF0_20250909
["timestamp","ask_amount","ask_price","bid_price","bid_amount"]
[1757432360982,0.7386,4281.9,4281.8,0.2111]
[1757432361681,0.7386,4281.9,4281.1,0.2942]
[1757432362282,0.7386,4281.9,4281.8,0.2111]
[1757432363284,0.7386,4281.9,4281.8,0.7162]
[1757432363475,0.7386,4281.9,4281.8,0.422]
[1757432363676,0.5255,4281.9,4281.8,0.7162]
[1757432364075,0.7386,4281.9,4281.8,0.7162]
[1757432364280,0.7386,4281.9,4281.8,0.2111]
[1757432364773,0.7386,4281.9,4281.8,0.7162]
[1757432364973,0.7386,4282.9,4282.8,0.2111]
[1757432365978,0.7386,4282.8,4282.7,0.2111]
[1757432366787,0.4267,4282.8,4282.0,0.1241]
[1757432366982,0.1199,4283.0,4282.1,0.23351]
[1757432367180,0.1199,4283.0,4282.1,0.52771]
[1757432367383,0.3119,4282.9,4282.1,0.2942]
[1757432368486,0.84694,4282.6,4282.5,0.7162]
[1757432368880,0.42024,4282.6,4282.5,0.8403]
[1757432369084,1.15884,4282.6,4282.5,0.422]
[1757432371283,1.15884,4282.6,4282.5,0.2111]
[1757432371484,1.15884,4282.6,4282.5,0.422]
[1757432371698,1.15884,4282.6,4282.5,0.7162]
[1757432372180,1.15884,4282.6,4282.5,0.422]
[1757432372985,0.4267,4282.2,4282.1,0.5053]
[1757432373181,0.7386,4282.2,4282.1,0.7162]
[1757432373385,0.7386,4282.2,4281.5,0.1241]
[1757432373386,0.7386,4282.2,4281.7,0.2942]
[1757432373585,0.7386,4282.2,4281.6,0.2942]
[1757432373987,0.7386,4282.2,4282.1,0.2111]
[1757432375190,0.7386,4282.2,4282.1,0.422]
[1757432375990,0.7386,4282.2,4282.1,0.2111]
[1757432376192,0.7386,4282.2,4281.7,0.2942]
[1757432376586,0.2136,4281.5,4281.4,0.7162]
[1757432376790,0.1215,4282.0,4281.4,0.422]
[1757432376992,0.4267,4282.5,4281.6,0.2942]
[1757432377286,0.4267,4282.5,4281.5,0.35765]
[1757432377287,0.7386,4282.5,4282.4,0.7162]
[1757432378297,0.8601,4282.5,4282.4,0.422]
[1757432378592,0.7386,4282.5,4282.4,0.7162]
[1757432379284,0.1215,4283.0,4282.5,0.1241]
[1757432379285,0.3119,4282.8,4282.5,0.1241]
[1757432379488,0.5255,4282.8,4282.7,0.7162]
[1757432379689,0.7386,4282.8,4282.7,0.7162]
[1757432380585,0.1215,4284.0,4282.7,0.422]
[1757432380894,0.5255,4282.9,4282.8,0.7162]
[1757432381485,0.3119,4283.4,4282.9,0.2942]
[1757432381687,0.5255,4283.0,4282.9,0.7162]
[1757432382286,0.7386,4283.0,4282.9,0.7162]
[1757432382590,0.7386,4283.0,4282.2,0.5152]
[1757432382591,0.8601,4283.0,4282.2,0.5152]
[1757432382892,0.7386,4282.3,4282.2,0.9372]
[1757432383293,0.2136,4282.3,4282.2,0.9372]
[1757432383493,0.5255,4282.4,4282.3,0.7162]
[1757432384690,0.7386,4282.4,4282.3,0.7162]
[1757432384891,0.5255,4282.4,4282.3,0.7162]
[1757432385090,0.1215,4284.0,4282.4,0.2942]
[1757432385286,0.1215,4284.0,4283.4,0.7162]
[1757432385287,0.5255,4283.5,4283.4,0.7162]
[1757432385589,0.8601,4283.5,4283.4,0.2111]
[1757432385798,0.5255,4282.9,4282.8,0.8522]
[1757432386090,0.7386,4282.9,4282.0,1.79628099]
[1757432386285,0.1215,4283.0,4282.2,0.2942]
[1757432386286,0.3119,4282.8,4282.2,0.2942]
[1757432386587,0.2136,4282.3,4282.2,0.7187]
[1757432386792,0.5354,4282.3,4282.2,0.9597]
[1757432387292,0.2136,4282.3,4282.2,0.9597]
[1757432387490,0.1215,4283.0,4282.2,0.6655]
[1757432387689,0.737,4282.9,4282.8,0.2123]
[1757432387883,0.737,4282.9,4282.8,0.7356]
[1757432388991,0.2061,4282.9,4282.8,0.7356]
[1757432389191,0.1215,4284.0,4283.3,0.4257]
[1757432389192,0.3218,4283.4,4283.3,0.4257]
[1757432389386,0.3218,4283.9,4283.4,0.3099]
[1757432389693,0.3218,4284.4,4283.8,0.7356]
[1757432390194,0.2061,4283.9,4283.8,0.7356]
[1757432390385,0.5279,4283.9,4283.8,0.7356]
[1757432390586,0.737,4283.9,4283.8,0.4257]
[1757432391194,0.737,4283.9,4283.8,0.2123]
[1757432391591,0.737,4283.9,4283.4,0.3099]
[1757432391795,0.737,4283.9,4283.5,0.241]
[1757432391989,0.737,4283.8,4283.7,0.2123]
[1757432392991,0.737,4283.4,4283.3,0.2123]
[1757432393690,0.737,4283.4,4283.0,0.3099]
[1757432393994,0.1265,4283.5,4282.6,35.30818099]
[1757432393995,0.3218,4283.3,4282.9,0.241]
[1757432394194,0.8635,4283.0,4282.9,0.2123]
[1757432394392,0.737,4282.7,4282.6,33.636]
[1757432396389,0.3218,4282.6,4282.0,0.3099]
[1757432396590,0.3218,4282.6,4281.1,33.633]
[1757432396591,0.4152,4282.2,4282.1,0.4533]
[1757432396789,0.737,4282.2,4282.1,0.2123]
[1757432399592,0.1265,4283.0,4282.9,0.2123]
[1757432399593,0.8635,4283.0,4282.9,0.2123]
[1757432400396,0.8635,4283.0,4282.6,0.3099]
[1757432400587,0.5417,4283.0,4282.9,0.2123]
[1757432400801,0.5417,4283.0,4282.1,0.3099]
[1757432401094,0.4152,4282.2,4282.1,0.7356]
[1757432401288,0.2061,4282.2,4282.1,0.7356]
[1757432401897,0.737,4282.2,4281.8,0.241]
[1757432402099,0.4152,4282.2,4281.8,0.241]
[1757432402300,0.737,4282.1,4282.0,0.2123]
[1757432402795,0.737,4282.1,4281.2,1.67218099]
[1757432402994,0.1265,4282.5,4281.2,1.67218099]
[1757432402995,0.5279,4281.4,4281.3,0.5222]
[1757432403188,0.5279,4281.4,4281.3,0.7356]
[1757432403393,0.737,4281.4,4281.3,0.7356]
[1757432405497,0.1265,4282.0,4281.3,0.7356]
[1757432405701,0.3218,4281.9,4281.3,0.7356]
[1757432405902,0.1265,4282.0,4281.3,0.7356]
[1757432406203,0.1265,4281.5,4281.1,33.874]
[1757432406497,0.737,4281.2,4281.1,33.874]
[1757432406902,0.737,4281.2,4281.1,34.1839]
[1757432407304,0.737,4281.2,4281.1,33.874]
[1757432407906,0.737,4281.2,4281.1,33.633]
[1757432408599,0.737,4281.2,4281.0,0.00400205]
[1757432409105,0.737,4281.1,4281.0,0.00400205]
[1757432409602,0.737,4281.1,4281.0,0.21630205]
[1757432409802,0.737,4281.1,4281.0,0.00400205]
[1757432411405,0.737,4281.1,4281.0,0.21630205]
[1757432411902,0.737,4281.1,4281.0,0.00400205]
[1757432416310,0.737,4281.1,4281.0,0.42970205]
[1757432416716,0.737,4281.1,4281.0,0.73120205]
[1757432416917,0.308,4281.4,4281.1,0.3015]
[1757432417117,0.308,4281.9,4281.4,0.3015]
[1757432417416,0.308,4282.4,4281.8,0.4125]
[1757432417722,0.7368,4282.4,4282.3,0.2141]
[1757432418316,0.7368,4282.4,4281.7,0.126]
[1757432418516,0.241,4283.7,4281.0,0.21810205]
[1757432418517,0.7368,4281.1,4281.0,0.21810205]
[1757432418818,0.7368,4281.1,4281.0,0.00400205]
[1757432420620,0.7368,4281.1,4281.0,0.71800205]
[1757432420820,0.7368,4281.1,4281.0,0.21810205]
[1757432421119,0.7368,4281.1,4281.0,0.00400205]
[1757432423213,0.7368,4281.1,4281.0,0.21810205]
[1757432423418,0.2133,4281.1,4281.0,0.71800205]
[1757432423921,0.5213,4281.1,4281.0,0.71800205]
[1757432424221,0.2133,4281.1,4281.0,0.71800205]
[1757432424409,0.308,4281.4,4281.1,0.3015]
[1757432424609,0.5213,4281.4,4281.3,0.714]
[1757432425010,0.7368,4281.4,4281.3,0.714]
[1757432425215,0.7368,4281.4,4281.0,0.12290205]
[1757432425216,0.7368,4281.4,4281.0,0.00400205]
[1757432428021,0.11856231,4281.3,4281.0,0.00400205]
[1757432428328,0.7368,4281.4,4281.0,0.00400205]
[1757432428630,0.7368,4281.1,4281.0,0.00400205]
[1757432429123,0.97209825,4281.1,4281.0,0.00400205]
[1757432429324,0.8535,4281.1,4281.0,0.00400205]
[1757432430024,0.2133,4280.0,4279.9,0.954]
[1757432430425,0.308,4280.2,4279.9,0.954]
[1757432430626,0.308,4280.2,4280.1,0.4125]
[1757432430923,0.5213,4280.2,4280.1,0.714]
[1757432431123,0.1241,4281.0,4280.1,0.4125]
[1757432431331,0.1241,4281.0,4280.2,0.3015]
[1757432431526,0.308,4280.9,4280.2,0.3015]
[1757432431729,0.5213,4280.3,4280.2,0.714]
[1757432432427,0.7368,4280.3,4280.2,0.2141]
[1757432432928,0.7368,4280.3,4280.2,0.714]
[1757432433724,0.7368,4280.3,4279.7,0.3015]
[1757432433929,0.7368,4279.8,4279.7,0.4125]
[1757432434233,0.1241,4280.5,4280.3,0.2141]
[1757432434234,0.7368,4280.4,4280.3,0.2141]
[1757432436029,0.7368,4280.4,4280.3,0.714]
[1757432436230,0.308,4280.7,4280.3,0.4125]
[1757432436432,0.1241,4281.0,4280.0,0.1189]
[1757432436433,0.8609,4281.0,4280.9,0.2141]
[1757432436629,0.8609,4281.0,4280.5,0.3015]
[1757432436929,0.5213,4280.0,4279.9,0.714]
[1757432437130,0.1241,4280.5,4279.9,0.6525]
[1757432437336,0.308,4280.5,4280.4,0.714]
[1757432437531,0.5213,4280.9,4280.8,0.714]
[1757432437727,0.7368,4280.9,4280.8,0.714]
[1757432438226,0.7368,4280.9,4280.8,0.4125]
[1757432438427,0.7368,4280.9,4280.8,0.2141]
[1757432438623,0.7368,4280.9,4280.8,0.714]
[1757432439134,0.4247,4281.1,4280.9,0.3015]
[1757432439440,0.7368,4281.0,4280.9,0.714]
[1757432439935,0.1167,4281.1,4281.0,0.3015]
[1757432440130,0.33,4281.1,4281.0,0.714]
[1757432440324,0.33,4281.1,4280.5,0.1189]
[1757432440325,0.5455,4281.1,4280.5,0.1189]
[1757432440532,0.2133,4280.5,4280.4,0.4541]
[1757432440723,0.2133,4280.5,4280.4,0.714]
[1757432440724,0.7368,4280.5,4280.4,0.714]
[1757432440927,0.308,4280.9,4280.6,0.3015]
[1757432441230,0.2133,4280.9,4280.8,0.714]
[1757432441429,0.7368,4280.9,4280.8,0.714]
[1757432442437,0.7368,4280.9,4280.8,0.4125]
[1757432443026,0.7368,4280.9,4280.8,0.714]
[1757432443426,0.7368,4280.9,4280.8,0.4125]
[1757432443738,0.7368,4280.9,4280.5,0.24]
[1757432443934,0.7368,4280.9,4280.1,0.3015]
[1757432444141,0.7368,4280.9,4280.2,0.24]
[1757432444736,0.7368,4280.9,4280.3,0.3015]
[1757432444945,0.7368,4280.9,4280.8,0.2141]
[1757432445132,0.7368,4280.9,4280.8,0.4125]
[1757432445334,0.4247,4281.1,4280.9,0.3015]
[1757432445534,0.4247,4281.1,4281.0,0.4125]
[1757432445734,0.1167,4281.1,4281.0,0.8329]
[1757432445939,0.638,4281.1,4281.0,0.8329]
[1757432446143,0.1167,4281.1,4281.0,0.8329]
[1757432446442,0.308,4281.9,4281.1,0.3015]
[1757432446639,0.5194,4281.9,4281.8,0.7022]
[1757432446841,0.7165,4281.9,4281.4,0.293]
[1757432447042,0.732,4281.9,4281.8,0.4092]
[1757432447645,0.732,4281.9,4281.8,0.7022]
[1757432447845,0.5349,4281.9,4281.8,0.7022]
[1757432448046,0.3235,4282.4,4281.8,0.7022]
[1757432448244,0.3235,4282.4,4281.9,0.293]
[1757432448449,0.1241,4283.0,4282.3,0.7022]
[1757432448642,0.5349,4282.4,4282.3,0.7022]
[1757432449746,0.732,4282.4,4282.3,0.4092]
[1757432449943,0.1255,4282.0,4281.9,0.4092]
[1757432450242,0.8575,4282.0,4281.9,0.6492]
[1757432450548,0.5349,4282.5,4282.4,0.7022]
[1757432450842,0.3235,4282.9,4282.5,0.293]
[1757432451047,0.732,4282.9,4282.8,0.4092]
[1757432451843,0.732,4282.9,4282.0,0.1167]
[1757432452043,0.732,4282.9,4282.1,0.293]
[1757432452238,0.732,4282.9,4282.2,0.24]
[1757432452442,0.1241,4283.0,4282.1,0.4453]
[1757432452443,0.732,4282.2,4282.1,0.4453]
[1757432452649,0.1255,4282.0,4281.8,0.24]
[1757432452945,0.2114,4281.3,4281.2,33.943]
[1757432453137,0.5349,4281.3,4281.2,33.943]
[1757432453340,0.5349,4281.3,4281.2,33.65]
[1757432454648,0.1971,4281.1,4281.0,0.24]
[1757432454843,0.732,4281.1,4281.0,0.24]
[1757432455549,0.1255,4281.5,4280.3,0.293]
[1757432455550,0.732,4280.9,4280.8,0.24]
[1757432456047,0.4085,4280.9,4280.8,0.4092]
[1757432456245,0.1255,4281.5,4280.9,0.293]
[1757432456548,0.3235,4280.9,4280.7,0.24]
[1757432456751,0.732,4280.8,4280.7,0.24]
[1757432456954,0.732,4280.8,4280.5,0.24]
[1757432457956,0.3235,4280.7,4280.5,0.24]
[1757432458253,0.732,4280.6,4280.5,0.6492]
[1757432458840,0.732,4280.6,4280.5,0.4092]
[1757432459041,0.732,4280.6,4280.5,0.2053]
[1757432459954,0.732,4280.6,4280.5,0.4092]
[1757432460254,0.449,4281.0,4280.5,0.4092]
[1757432460448,0.5349,4281.0,4280.9,0.4092]
[1757432460753,0.534,4281.0,4280.9,0.2053]
[1757432461261,0.534,4281.0,4280.8,0.24]
[1757432461457,0.534,4281.0,4280.9,0.2053]
[1757432462147,0.8575,4281.0,4280.9,0.2053]
[1757432462346,0.8575,4281.0,4280.9,0.4092]
[1757432462547,0.3235,4281.4,4281.1,0.293]
[1757432462752,0.3235,4281.4,4281.0,0.1167]
[1757432462753,0.732,4281.9,4281.8,0.2053]
[1757432463057,0.732,4281.9,4281.4,0.293]
[1757432463455,0.3235,4281.8,4281.0,0.293]
[1757432463648,0.732,4281.1,4281.0,0.7022]
[1757432463848,0.5349,4281.1,4281.0,0.9422]
[1757432464050,0.3235,4281.1,4281.0,0.9422]
[1757432464256,0.3235,4281.4,4281.0,0.6492]
[1757432464454,0.5349,4281.2,4281.1,0.7022]
[1757432464851,0.1255,4281.5,4281.1,0.7022]
[1757432464852,0.3235,4281.4,4281.1,0.4092]
[1757432465158,0.5349,4281.4,4281.3,0.7022]
[1757432466055,0.732,4281.4,4281.3,0.4092]
[1757432466363,0.732,4281.4,4281.0,0.24]
[1757432466850,0.1255,4281.0,4280.9,0.4453]
[1757432467053,0.8575,4281.0,4280.9,0.4453]
[1757432467255,0.8575,4281.0,4280.9,0.24]
[1757432467659,0.8575,4281.0,4280.5,0.293]
[1757432467859,0.8575,4281.0,4280.6,0.24]
[1757432468155,0.18200231,4283.0,4280.6,0.24]
[1757432468156,1.24116092,4283.0,4282.7,0.4092]
[1757432468457,0.1255,4284.0,4283.1,0.7022]
[1757432468855,0.1255,4284.0,4283.2,0.31833836]
[1757432469055,0.2114,4283.4,4283.3,1.02053836]
[1757432469457,0.1255,4284.0,4283.3,1.02053836]
[1757432469757,0.1255,4284.0,4283.4,0.49235438]
[1757432470054,0.2114,4283.6,4283.5,1.19455438]
[1757432470657,0.732,4283.6,4283.5,1.19455438]
[1757432474352,0.4085,4283.6,4283.5,1.31125438]
[1757432474555,0.732,4283.6,4283.5,1.19455438]
[1757432475254,0.732,4283.6,4283.5,0.49235438]
[1757432475455,0.732,4283.6,4283.5,0.31833836]
[1757432477461,0.1255,4284.0,4283.5,1.03933836]
[1757432477654,0.5123,4283.7,4283.6,0.83703836]
[1757432477960,0.7126,4283.7,4283.6,0.83703836]
[1757432478157,0.1255,4284.5,4283.6,1.04063836]
[1757432478458,0.4147,4283.8,4283.7,0.52391078]
[1757432478660,0.7126,4283.8,4283.7,0.31731078]
[1757432479762,0.7126,4283.8,4283.7,0.83601078]
[1757432480563,0.2979,4283.8,4283.7,0.31731078]
[1757432480860,0.7126,4283.8,4283.7,0.52391078]
[1757432481054,0.7126,4283.8,4283.7,0.83601078]
[1757432481659,0.7126,4283.8,4283.7,1.03961078]
[1757432481850,0.2979,4284.3,4283.7,0.72751078]
[1757432482053,0.234,4285.3,4284.2,0.7223]
[1757432482249,0.2144,4284.3,4284.2,0.7223]
[1757432482455,0.5123,4284.3,4284.2,0.7223]
[1757432482656,0.7126,4284.3,4284.2,0.7223]
[1757432483261,0.2144,4284.3,4284.2,0.7223]
[1757432483462,0.2979,4284.9,4284.3,0.3121]
[1757432483657,0.2979,4284.9,4284.5,0.3121]
[1757432483658,0.7126,4284.9,4284.5,0.3121]
[1757432483858,0.2979,4284.8,4284.1,0.3121]
[1757432484058,0.2979,4284.9,4284.3,0.3121]
[1757432484361,0.2144,4284.5,4284.4,1.03932214]
[1757432484565,0.2979,4284.7,4284.5,0.1188]
[1757432484757,0.2144,4284.7,4284.6,0.7223]
[1757432485152,0.7126,4284.7,4284.6,0.7223]
[1757432485463,0.7126,4284.7,4283.6,0.3121]
[1757432485663,0.7126,4284.7,4283.7,0.31689979]
[1757432485867,0.7126,4284.7,4283.8,0.62899979]
[1757432486061,0.4147,4284.0,4283.9,0.52349979]
[1757432486360,0.8334,4284.0,4283.5,0.3121]
[1757432486557,0.7126,4283.7,4283.6,0.83563769]
[1757432486859,0.7126,4283.7,4283.6,1.03923769]
[1757432487362,1.01155374,4283.7,4283.6,1.03923769]
[1757432487765,1.01155374,4283.7,4283.6,0.31693769]
[1757432488064,1.01155374,4283.7,4283.0,0.1188]
[1757432488065,0.2144,4283.2,4283.1,0.7223]
[1757432488260,0.7126,4283.2,4283.1,0.83573613]
[1757432488468,0.7126,4283.2,4283.1,1.03933613]
[1757432488668,0.7126,4283.2,4283.1,0.72723613]
[1757432488871,0.7126,4283.2,4283.1,0.52363613]
[1757432489062,0.7126,4283.2,4283.1,0.31703613]
[1757432489370,1.01155374,4283.2,4282.8,0.3121]
[1757432489570,1.01155374,4283.2,4282.9,0.31733433]
[1757432489863,0.2979,4283.1,4282.8,0.3121]
[1757432490064,0.2144,4282.9,4282.8,0.7223]
[1757432490265,0.2144,4282.9,4282.8,1.03963165]
[1757432490266,0.51335374,4282.9,4282.8,1.03963165]
[1757432490569,1.01155374,4282.9,4282.8,1.03963165]
[1757432491065,1.01155374,4282.9,4282.8,1.0396734]
[1757432491262,0.71365374,4282.9,4282.8,1.0396734]
[1757432491566,1.01155374,4282.9,4282.8,0.3173734]
[1757432491868,0.7126,4281.7,4281.6,0.2066]
[1757432492058,0.7126,4281.7,4281.6,0.5187]
[1757432492369,1.01155374,4281.7,4281.6,0.5187]
[1757432492564,0.51335374,4281.7,4281.6,0.7223]
[1757432493068,0.71365374,4281.7,4281.6,0.7223]
[1757432493267,1.01155374,4281.7,4281.6,0.7223]
[1757432493771,0.51335374,4281.7,4281.6,0.7223]
[1757432493969,0.29895374,4281.7,4281.6,0.7223]
[1757432494265,0.51335374,4281.7,4281.6,0.7223]
[1757432494470,0.81125374,4281.7,4281.6,0.7223]
[1757432494767,0.51335374,4281.7,4281.6,0.7223]
[1757432495270,0.29895374,4281.7,4281.6,0.7223]
[1757432495864,0.29895374,4281.7,4281.6,5.14526071]
[1757432496063,0.5123,4282.9,4282.8,0.4102]
[1757432496260,0.7126,4282.9,4282.0,0.0756]
[1757432496564,0.2979,4282.8,4282.1,0.50152822]
[1757432496865,0.2144,4282.3,4282.2,0.7223]
[1757432497066,0.2144,4282.3,4282.2,1.04261186]
[1757432497267,0.2144,4282.3,4282.2,1.23210415]
[1757432497468,0.2979,4282.5,4282.2,0.92000415]
[1757432497769,0.5123,4282.5,4282.4,0.7223]
[1757432498069,0.5123,4282.5,4282.4,1.04261186]
[1757432498261,0.1208,4283.0,4282.5,0.3121]
[1757432498262,0.4187,4283.0,4282.5,0.3121]
[1757432498463,0.8334,4283.0,4282.9,0.4102]
[1757432498661,0.8334,4283.0,4282.9,0.73072296]
[1757432499565,0.2979,4283.9,4283.4,0.7223]
[1757432499774,0.7126,4283.9,4283.5,0.32052296]
[1757432499966,0.7126,4283.9,4282.9,0.23346]
[1757432499967,0.7126,4283.9,4283.6,0.32052296]
[1757432500169,0.7126,4283.9,4282.4,0.3121]
[1757432500365,0.2144,4282.6,4282.5,1.00530751]
[1757432500666,0.5123,4282.6,4282.5,1.52100751]
[1757432500969,0.5123,4282.6,4282.5,0.71671612]
[1757432500970,0.7126,4282.6,4282.5,0.71671612]
[1757432501272,0.7126,4282.6,4282.5,0.32054834]
[1757432502768,0.7126,4282.6,4282.5,0.52714834]
[1757432502966,0.7126,4282.6,4282.5,1.04284834]
[1757432502967,0.5123,4282.6,4282.5,1.04284834]
[1757432503172,0.5123,4282.6,4282.5,1.23242834]
[1757432503569,0.5123,4282.6,4282.5,1.23243632]
[1757432503874,0.1208,4283.5,4282.5,1.23243632]
[1757432503875,0.2979,4283.4,4282.8,0.7223]
[1757432504173,0.2979,4283.4,4282.5,0.62893632]
[1757432504174,0.5123,4283.0,4282.9,1.04284834]
[1757432505070,0.4187,4283.5,4283.0,0.3121]
[1757432505270,0.8334,4283.5,4283.4,0.2066]
[1757432505575,0.8334,4283.5,4283.4,0.32054834]
[1757432507070,0.1208,4284.5,4283.4,0.73494834]
[1757432507277,0.7076,4283.9,4283.8,0.2019]
[1757432507468,0.7076,4283.9,4283.8,0.52249756]
[1757432507776,0.7076,4283.9,4283.8,0.32059756]
[1757432508179,0.7076,4283.9,4283.8,0.52249756]
[1757432510472,0.5069,4283.9,4283.8,1.04529756]
[1757432511079,0.7076,4283.9,4283.8,1.04529756]
[1757432511278,0.5069,4283.9,4283.8,1.04529756]
[1757432511472,0.3119,4284.4,4283.8,1.04529756]
[1757432511671,0.195,4284.0,4283.9,0.73499756]
[1757432511876,0.5069,4284.0,4283.9,1.04529756]
[1757432512076,0.8324,4284.0,4283.9,0.32059756]
[1757432512878,0.8324,4284.0,4283.9,1.04529756]
[1757432513076,0.8324,4284.0,4283.9,1.04535006]
[1757432513875,0.1208,4284.5,4283.9,1.04535006]
[1757432514079,0.5069,4284.4,4284.3,0.7247]
[1757432514273,0.5069,4284.4,4284.3,1.04535006]
[1757432514580,0.3119,4284.9,4284.3,1.04535006]
[1757432514774,0.195,4284.5,4284.4,0.73505006]
[1757432514975,0.5069,4284.5,4284.4,1.04535006]
[1757432515677,0.3119,4285.4,4284.5,0.1188]
[1757432515980,0.7076,4285.4,4285.3,0.2019]
[1757432516175,0.7076,4285.4,4285.3,0.52255006]
[1757432516980,0.7076,4285.4,4285.3,0.32065006]
[1757432517572,0.7076,4285.4,4284.8,0.3103]
[1757432517775,0.7076,4285.4,4284.9,0.32051472]
[1757432517976,0.7076,4285.4,4285.0,0.32051472]
[1757432518180,0.3957,4285.4,4285.3,0.2019]
[1757432518478,0.1248,4285.0,4284.9,0.2019]
[1757432518679,0.4367,4285.0,4284.9,0.52227189]
[1757432518880,0.6317,4285.0,4284.9,1.04507189]
[1757432519079,0.3119,4285.4,4285.3,0.4144]
[1757432519287,0.5069,4285.4,4285.3,0.7247]
[1757432519582,0.7076,4285.4,4284.9,0.3103]
[1757432519883,0.7076,4285.4,4285.0,0.32023285]
[1757432520086,0.7076,4285.4,4285.1,0.32023285]
[1757432520279,0.3119,4285.3,4284.5,0.3103]
[1757432520481,0.5069,4284.6,4284.5,0.7247]
[1757432520675,0.4367,4285.0,4284.5,1.23422574]
[1757432520978,0.8324,4285.0,4284.9,0.2019]
[1757432521179,0.8324,4285.0,4284.9,0.32020651]
[1757432521983,0.8324,4285.0,4284.9,0.52210651]
[1757432522284,0.8324,4285.0,4284.9,0.32020651]
[1757432523074,0.8324,4285.0,4283.2,0.3103]
[1757432523075,0.3119,4284.9,4283.2,0.3103]
[1757432523277,0.5069,4283.4,4283.3,1.52215204]
[1757432523782,0.5069,4283.4,4283.3,1.23416412]
[1757432524084,0.7076,4283.4,4283.3,0.32016297]
[1757432524283,0.7076,4283.4,4283.3,0.52206297]
[1757432524676,0.7076,4283.4,4283.3,0.73456297]
[1757432524874,0.3119,4283.4,4283.3,1.04486297]
[1757432525085,0.5069,4283.4,4283.3,1.04486297]
[1757432525477,0.7076,4283.4,4283.3,0.32016297]
[1757432525672,0.7076,4283.4,4282.2,1.25135643]
[1757432525673,5.12657292,4283.4,4282.2,0.3103]
[1757432525880,5.12657292,4283.4,4281.5,0.1193]
[1757432525881,0.7076,4282.4,4281.5,0.1193]
[1757432526183,0.7076,4282.4,4281.4,0.3103]
[1757432526184,0.7076,4282.4,4281.6,0.18959779]
[1757432526373,0.7076,4282.4,4281.4,0.3103]
[1757432526578,0.7076,4282.4,4281.5,0.18549218]
[1757432526777,0.7076,4282.4,4281.4,0.3103]
[1757432526977,0.7076,4282.4,4281.5,0.18549295]
[1757432527182,0.7076,4282.4,4281.4,0.3103]
[1757432527483,0.7076,4282.4,4281.5,0.18544359]
[1757432527680,0.7076,4282.4,4281.5,0.1285]
[1757432529688,0.7076,4282.4,4281.6,0.3103]
[1757432533486,0.7076,4282.4,4281.1,0.3103]
[1757432533791,0.195,4280.7,4280.6,0.7247]
[1757432533992,0.7076,4280.7,4280.6,0.7247]
[1757432534680,0.3957,4280.7,4280.0,0.1285]
[1757432534880,0.195,4280.2,4280.1,0.7247]
[1757432537091,0.7037,4280.2,4280.1,0.2019]
[1757432537296,0.7037,4280.2,4280.1,0.5232]
[1757432537993,0.7037,4280.2,4280.1,0.7283]
[1757432538289,0.308,4280.6,4280.2,0.3213]
[1757432538491,0.5059,4280.6,4280.5,0.4099]
[1757432538681,0.7016,4280.6,4280.5,0.7312]
[1757432539391,0.1248,4282.0,4280.6,0.3213]
[1757432539697,0.308,4281.9,4281.2,0.3213]
[1757432540389,0.7016,4281.3,4281.2,0.7312]
[1757432540587,0.1979,4280.6,4280.5,0.8503]
[1757432541489,0.5059,4280.6,4280.5,0.8503]
[1757432541689,0.29759001,4281.4,4280.5,0.7312]
[1757432541891,0.064,4281.4,4281.0,0.1191]
[1757432543187,0.064,4281.4,4281.1,0.3213]
[1757432543387,0.064,4281.4,4281.0,0.1191]
[1757432543684,0.064,4281.4,4281.1,0.3213]
[1757432543881,4.0,4281.3,4281.1,0.3213]
[1757432544093,4.0,4281.3,4281.0,0.1191]
[1757432544395,4.0,4281.3,4281.1,0.3213]
[1757432544593,0.064,4281.4,4281.0,0.1191]
[1757432544791,0.064,4281.4,4281.1,0.3213]
[1757432544992,0.29758,4281.4,4281.0,0.1191]
[1757432545288,0.29758,4281.4,4281.1,0.3213]
[1757432545694,0.064,4281.4,4281.1,0.3213]
[1757432545894,0.064,4281.4,4281.2,0.5261]
[1757432546095,0.064,4281.4,4281.3,0.3213]
[1757432546396,0.19077814,4282.4,4281.3,0.3213]
[1757432546595,0.95516587,4282.3,4281.3,0.3213]
[1757432546795,0.48162587,4282.2,4281.3,0.3213]
[1757432546988,0.48162587,4282.1,4281.5,0.1191]
[1757432547185,0.48162587,4282.0,4281.6,0.3213]
[1757432547396,0.23354,4282.2,4281.6,0.3213]
[1757432547697,0.72188358,4282.1,4281.6,0.3213]
[1757432547999,0.48188358,4282.0,4281.5,0.1191]
[1757432548191,0.48188358,4281.9,4281.6,0.3213]
[1757432548391,0.24,4282.1,4282.0,0.1191]
[1757432548696,4.722204,4282.1,4282.0,0.4404]
[1757432548896,0.722204,4282.1,4282.0,0.4404]
[1757432549098,0.482204,4282.1,4282.0,0.4404]
[1757432549293,0.482204,4282.1,4282.0,0.6452]
[1757432549596,0.19067589,4282.4,4282.1,0.2048]
[1757432549793,0.7225439,4282.3,4282.2,0.5261]
[1757432549994,0.4825439,4282.3,4282.2,0.5261]
[1757432550196,33.653,4282.6,4282.5,0.6452]
[1757432550391,34.56282325,4282.6,4282.5,0.6452]
[1757432550993,34.56282325,4282.6,4282.5,0.4404]
[1757432553888,38.56282325,4282.6,4282.5,0.4404]
[1757432554589,38.56282325,4282.6,4282.0,0.1191]
[1757432554793,0.48267324,4282.5,4282.0,0.1191]
[1757432555197,1.23256735,4282.4,4282.0,0.1191]